bitfinex/quotes_ETHUSD_20250110
["timestamp","ask_amount","ask_price","bid_price","bid_amount"]
[1736535812697,3.65265534,3288.1,3287.6,0.61854539]
[1736535813848,3.04164,3287.7,3287.6,0.61854539]
[1736535814199,3.07257338,3287.6,3286.9,0.8286]
[1736535814534,0.0075,3287.2,3286.3,0.7585]
[1736535814735,3.04248,3286.8,3286.6,0.596304]
[1736535814939,3.04248,3286.8,3286.3,0.7585]
[1736535815166,0.0075,3287.2,3286.3,0.7585]
[1736535815315,3.08007338,3286.7,3286.1,0.59983675]
[1736535815517,6.12267338,3286.7,3286.1,0.59983675]
[1736535817356,3.08007338,3286.7,3286.1,0.59983675]
[1736535817664,3.04303,3286.2,3285.7,0.245]
[1736535817860,3.04303,3286.2,3285.5,0.7805]
[1736535817861,3.04275,3286.5,3285.5,0.7805]
[1736535818071,3.04311,3286.2,3285.5,0.7805]
[1736535818263,3.356135,3286.4,3285.5,0.7805]
[1736535818453,3.05036,3286.4,3285.6,0.61421139]
[1736535818934,3.05782,3286.5,3285.6,0.61421139]
[1736535819820,6.11516338,3286.7,3285.6,3.65771139]
[1736535820025,3.07257338,3286.7,3285.8,3.04334]
[1736535820229,6.11517338,3286.7,3285.8,0.44232514]
[1736535820425,3.07257338,3286.7,3285.8,3.04337]
[1736535820741,3.07257338,3286.7,3285.9,0.7548]
[1736535820925,3.04215,3287.2,3286.1,3.04304]
[1736535821128,3.04215,3287.2,3285.8,3.0]
[1736535821129,6.89461338,3287.4,3286.3,3.7977]
[1736535821377,3.04212,3287.2,3286.3,0.9998]
[1736535821563,0.0075,3287.3,3286.4,0.39998]
[1736535821773,0.0075,3287.3,3286.3,0.9998]
[1736535821774,3.04263,3286.7,3286.3,0.9998]
[1736535822078,3.04267,3286.6,3286.3,0.245]
[1736535822279,3.05034,3286.4,3286.3,0.245]
[1736535822494,3.05034,3286.4,3284.4,0.25]
[1736535822495,3.0432,3286.1,3284.1,0.25]
[1736535822644,0.0225,3286.4,3285.3,0.245]
[1736535822835,3.04305,3286.2,3285.3,0.245]
[1736535823031,3.04305,3286.2,3285.4,0.7548]
[1736535823235,0.0075,3286.3,3285.6,0.59902315]
[1736535823236,3.04313,3286.1,3285.6,0.59902315]
[1736535823836,0.0075,3286.3,3285.6,0.59902315]
[1736535823837,3.05043,3286.3,3285.6,0.59902315]
[1736535824175,0.34587042,3286.4,3285.6,0.59902315]
[1736535824382,3.04268,3286.6,3285.7,0.7548]
[1736535824539,3.04277,3286.5,3285.7,0.7548]
[1736535825264,3.04252,3286.8,3285.8,0.03043251]
[1736535825578,3.04212,3287.2,3286.3,0.7548]
[1736535825874,3.04202,3287.3,3286.4,0.245]
[1736535826086,3.04214,3287.2,3286.4,1.26480942]
[1736535826233,3.04941,3287.4,3286.4,0.86053742]
[1736535826436,0.0075,3287.4,3286.4,0.86053742]
[1736535826878,3.04212,3287.2,3286.4,0.86053742]
[1736535827037,3.05693,3287.4,3286.5,0.7719]
[1736535827236,3.07257338,3287.5,3286.5,0.7719]
[1736535827549,3.07257338,3287.5,3286.7,3.81442]
[1736535827750,3.04202,3287.3,3286.7,0.7719]
[1736535827950,0.0075,3287.4,3286.7,0.7719]
[1736535828180,0.0075,3287.1,3286.4,0.7962]
[1736535828349,3.04264,3286.7,3286.4,0.7962]
[1736535828677,0.304264,3286.7,3286.1,0.7988]
[1736535828895,0.015,3286.9,3286.1,0.7988]
[1736535829044,3.04259,3286.7,3286.1,0.7988]
[1736535829773,3.05741,3286.9,3286.1,0.7988]
[1736535829987,3.04991,3286.9,3286.1,1.39964633]
[1736535830142,3.07257338,3287.0,3286.1,4.44273633]
[1736535830335,3.07257338,3287.0,3286.1,1.39964633]
[1736535830677,3.04248,3286.8,3286.1,1.39964633]
[1736535830877,3.07257338,3287.0,3286.1,1.39964633]
[1736535831176,3.07257338,3287.0,3286.2,0.7862]
[1736535831568,3.07257338,3287.0,3286.3,3.0732982]
[1736535831773,3.07257338,3287.0,3286.4,1.11722982]
[1736535832285,6.11490338,3287.0,3286.4,0.8099]
[1736535832491,3.07257338,3287.0,3286.4,0.8099]
[1736535833438,3.04257,3286.7,3286.4,0.8099]
[1736535833644,3.04239,3286.9,3286.4,0.8099]
[1736535833877,0.69359634,3286.9,3286.4,0.8099]
[1736535834081,3.07257338,3287.0,3286.4,0.8099]
[1736535834382,6.11487338,3287.0,3286.4,0.8099]
[1736535834567,3.07257338,3287.0,3286.4,0.8099]
[1736535835987,0.0075,3286.6,3286.1,1.41544633]
[1736535836185,3.05011,3286.7,3286.1,0.8146]
[1736535836390,0.384251,3286.6,3286.1,0.8146]
[1736535837051,3.426921,3286.6,3286.1,0.8146]
[1736535838083,0.384251,3286.6,3286.1,0.8146]
[1736535838489,3.05008,3286.7,3286.1,0.8146]
[1736535838878,3.04267,3286.6,3286.1,0.8146]
[1736535839059,3.04251,3286.8,3286.1,0.8146]
[1736535839262,3.07257338,3287.0,3286.1,0.8146]
[1736535839463,3.07257338,3287.0,3286.2,0.84503002]
[1736535839780,3.07257338,3287.0,3286.4,0.8146]
[1736535840176,3.07257338,3287.0,3286.6,0.6137107]
[1736535840376,3.07257338,3287.0,3286.6,0.245]
[1736535840686,6.11489338,3287.0,3286.6,0.245]
[1736535840890,6.72638272,3287.0,3286.6,0.245]
[1736535841191,6.72638272,3287.0,3286.4,0.8146]
[1736535841192,3.04257,3286.7,3286.4,0.8146]
[1736535841391,3.0424,3286.9,3286.4,0.8146]
[1736535841576,3.40767729,3287.9,3286.3,0.60170941]
[1736535841577,0.8057,3288.0,3286.7,0.7782]
[1736535841776,0.8057,3288.0,3286.8,0.245]
[1736535841994,3.042,3287.4,3286.9,0.7782]
[1736535842286,3.042,3287.4,3286.8,0.245]
[1736535842287,3.04229,3287.0,3286.8,0.245]
[1736535842486,3.04229,3287.0,3286.6,0.7587]
[1736535842728,3.04239,3286.9,3286.6,0.7587]
[1736535843091,0.0075,3287.3,3286.6,0.7587]
[1736535843389,0.015,3287.1,3286.3,1.65970941]
[1736535843753,3.04249,3286.8,3286.3,1.65970941]
[1736535844474,3.04231,3287.0,3286.3,1.65970941]
[1736535845877,0.015,3287.1,3286.3,1.65970941]
[1736535846065,3.04241,3286.9,3286.3,1.65970941]
[1736535846389,3.348151,3286.9,3286.3,1.65970941]
[1736535846914,6.42072438,3286.9,3286.3,1.65970941]
[1736535847114,3.37831438,3286.9,3286.3,1.65970941]
[1736535847320,3.07257338,3286.9,3286.3,1.65970941]
[1736535847821,3.07257338,3286.9,3286.4,0.8131]
[1736535848422,3.07257338,3287.5,3286.7,0.785]
[1736535848715,3.07257338,3287.5,3287.1,0.785]
[1736535848920,3.07257338,3287.5,3287.2,0.245]
[1736535849519,0.0075,3287.4,3286.9,0.7776]
[1736535849816,3.04221,3287.1,3286.9,0.7776]
[1736535850021,0.0225,3287.4,3285.7,0.7776]
[1736535850022,3.04273,3286.6,3285.7,0.7776]
[1736535850252,2.81944127,3286.6,3286.2,0.61712899]
[1736535850383,3.04284,3286.4,3285.8,0.245]
[1736535850584,3.04284,3286.4,3285.9,0.245]
[1736535850980,0.28194413,3286.6,3285.9,0.245]
[1736535851181,3.04315,3286.1,3285.7,1.0226]
[1736535851423,3.07257338,3286.4,3285.8,0.62309983]
[1736535851628,3.07257338,3286.4,3285.8,3.83105981]
[1736535851778,3.07257338,3286.4,3285.9,0.245]
[1736535852122,3.07257338,3286.4,3286.0,0.7597]
[1736535852609,2.81944127,3287.2,3286.0,0.7597]
[1736535852927,2.81944127,3287.2,3285.9,0.245]
[1736535852928,3.04213,3287.2,3286.2,3.04294]
[1736535853092,3.07257338,3287.3,3286.4,0.7748]
[1736535853879,3.04241,3286.9,3286.4,0.7748]
[1736535854094,3.04249,3286.8,3286.4,0.7748]
[1736535854835,3.04263,3286.7,3286.4,0.7748]
[1736535855137,3.04239,3286.9,3286.1,1.35220189]
[1736535855323,3.04971,3287.1,3286.2,0.8063]
[1736535855806,3.07257338,3287.3,3286.3,3.07328853]
[1736535855807,6.11461338,3287.3,3286.3,3.07328853]
[1736535856012,3.07257338,3287.3,3286.6,3.04261]
[1736535856206,6.11416338,3287.8,3286.8,0.7646]
[1736535856408,6.04166,3287.7,3287.0,0.7646]
[1736535857436,3.07257338,3287.8,3287.1,0.779]
[1736535857794,6.11412338,3287.8,3287.1,0.779]
[1736535858198,3.04194,3287.4,3287.1,0.779]
[1736535858513,3.04212,3287.2,3286.9,0.245]
[1736535858695,3.04212,3287.2,3286.8,0.59814894]
[1736535859402,3.346332,3287.2,3286.8,0.59814894]
[1736535859897,3.04233,3287.0,3286.7,0.7815]
[1736535860360,3.04238,3286.9,3286.6,0.245]
[1736535861844,3.07257338,3287.1,3286.6,0.245]
[1736535862202,6.11482338,3287.1,3286.6,0.245]
[1736535862667,3.07257338,3287.1,3286.6,0.245]
[1736535863138,3.07257338,3287.1,3286.7,0.7689]
[1736535864338,6.11476338,3287.1,3286.7,0.7689]
[1736535864569,3.07257338,3287.1,3286.7,0.7689]
[1736535865041,3.07257338,3287.1,3286.7,0.7993244]
[1736535865282,3.07257338,3287.1,3286.7,0.7689]
[1736535867633,3.07257338,3287.1,3286.7,1.174563]
[1736535868251,3.07257338,3287.1,3286.8,0.8074]
[1736535868435,3.07257338,3287.1,3287.0,0.8074]
[1736535870118,3.07257338,3287.1,3287.0,1.0524]
[1736535870766,3.04192,3287.4,3287.0,1.0524]
[1736535871132,3.04192,3287.4,3287.0,0.8074]
[1736535871556,3.04219,3287.1,3286.9,0.245]
[1736535871759,3.07257338,3287.0,3286.5,0.7884]
[1736535872071,3.04255,3286.8,3286.5,1.0334]
[1736535872276,3.04247,3286.8,3286.5,1.0334]
[1736535872956,6.11489338,3287.0,3286.5,1.0334]
[1736535873475,3.04246,3286.9,3286.5,1.0334]
[1736535874077,4.06678572,3287.0,3286.5,1.0334]
[1736535874280,3.04257,3286.7,3286.5,0.245]
[1736535874455,4.06678572,3287.0,3286.0,0.245]
[1736535874456,3.04287,3286.4,3286.0,0.245]
[1736535874655,3.04247,3286.8,3286.0,0.245]
[1736535874995,3.04267,3286.6,3286.0,0.245]
[1736535875138,3.75418557,3286.8,3286.0,0.245]
[1736535875466,3.04267,3286.6,3286.0,0.245]
[1736535876961,3.04278,3286.5,3286.0,0.245]
[1736535877675,0.71167557,3286.8,3286.0,0.245]
[1736535877887,3.41954956,3286.7,3286.0,0.245]
[1736535878089,3.04267,3286.6,3285.9,1.63509842]
[1736535878492,0.8315,3286.1,3284.9,0.7969]
[1736535878693,0.8315,3286.1,3284.9,1.0419]
[1736535878867,3.04341,3285.8,3284.9,7.08611]
[1736535879068,3.04341,3285.8,3285.2,0.62336427]
[1736535879655,3.04349,3285.7,3285.2,0.62336427]
[1736535880859,6.69648119,3286.1,3284.9,4.0419]
[1736535880860,0.0075,3285.8,3284.9,0.7969]
[1736535881089,0.8272,3285.6,3285.0,0.60045274]
[1736535881258,3.04397,3285.2,3284.7,0.251]
[1736535881673,0.8272,3285.6,3284.6,1.045]
[1736535881922,0.0075,3285.4,3284.6,1.65751785]
[1736535882115,3.04403,3285.2,3284.6,1.045]
[1736535882329,0.0075,3285.4,3284.6,1.045]
[1736535882462,3.04398,3285.2,3284.8,1.35094743]
[1736535882810,3.07257338,3285.8,3284.9,0.8319]
[1736535882960,3.45532072,3285.8,3284.9,0.8319]
[1736535883161,3.04379,3285.4,3284.9,0.8319]
[1736535883600,3.04359,3285.6,3284.9,0.8319]
[1736535883967,3.45532072,3285.8,3284.9,0.8319]
[1736535884187,6.49874072,3285.8,3284.9,0.8319]
[1736535884600,3.45532072,3285.8,3284.9,0.8319]
[1736535884776,3.04359,3285.6,3284.9,0.8319]
[1736535884973,0.42102207,3285.7,3284.9,3.87612]
[1736535885604,0.42102207,3285.7,3284.9,3.87611]
[1736535885804,0.42102207,3285.7,3285.0,0.59533641]
[1736535885978,0.0075,3285.6,3285.0,0.59533641]
[1736535886172,3.07257338,3285.8,3285.2,3.04393]
[1736535886392,3.07257338,3285.8,3285.3,0.7801]
[1736535886972,3.07257338,3285.8,3285.0,3.63945641]
[1736535886973,3.07257338,3285.8,3285.0,0.59533641]
[1736535887172,0.8174,3285.6,3285.0,0.7801]
[1736535887410,3.86099,3285.6,3285.0,0.7801]
[1736535887588,0.387599,3285.5,3285.0,0.7801]
[1736535887984,0.8174,3285.6,3285.0,0.7801]
[1736535889692,3.04374,3285.5,3285.0,0.7801]
[1736535889886,0.8174,3285.6,3285.0,0.7801]
[1736535890226,3.07257338,3285.8,3285.0,0.7801]
[1736535890430,3.07257338,3285.8,3285.3,0.7993]
[1736535890803,3.05849,3285.7,3285.0,0.251]
[1736535891041,3.68415472,3285.8,3285.0,1.0739]
[1736535891208,3.07257338,3285.8,3285.1,0.8229]
[1736535891537,3.07257338,3285.8,3285.2,3.04392]
[1736535891734,3.07257338,3285.8,3285.3,3.04383]
[1736535892032,3.07257338,3285.8,3285.3,3.430503]
[1736535892217,3.07257338,3285.8,3285.5,0.7627]
[1736535894934,0.0075,3286.5,3285.5,0.7627]
[1736535894935,3.07257338,3286.5,3285.7,3.04349]
[1736535895755,3.07257338,3286.5,3285.8,3.04337]
[1736535896161,3.07257338,3286.5,3285.7,3.04348]
[1736535896461,3.07257338,3286.5,3285.9,0.8227]
[1736535897554,0.015,3286.4,3285.5,0.7554]
[1736535897713,0.0075,3286.1,3285.8,0.61943235]
[1736535898316,3.07257338,3286.5,3285.8,0.61943235]
[1736535898518,3.07257338,3286.5,3285.8,3.66282235]
[1736535898745,3.07257338,3286.5,3285.9,0.7504]
[1736535900467,3.07257338,3286.5,3285.9,3.79368]
[1736535900756,3.07257338,3286.5,3286.2,0.8006]
[1736535901131,3.07257338,3286.5,3286.3,3.04292]
[1736535901461,3.07257338,3286.5,3286.2,0.8006]
[1736535901958,3.07257338,3286.5,3286.0,0.251]
[1736535902260,0.0075,3286.3,3285.6,0.8006]
[1736535902432,0.62054534,3286.3,3285.6,0.8006]
[1736535902758,0.0075,3286.2,3285.6,0.8006]
[1736535902982,3.07257338,3286.5,3285.6,0.8006]
[1736535903283,3.07257338,3286.5,3285.5,0.64645596]
[1736535903284,3.07257338,3286.5,3286.2,0.8118]
[1736535904048,3.07257338,3286.5,3285.3,3.0]
[1736535904049,0.015,3286.2,3285.6,0.8118]
[1736535904259,0.015,3286.2,3284.8,1.35094743]
[1736535904260,0.0075,3285.6,3284.9,0.8118]
[1736535904749,0.0075,3285.6,3285.1,0.61314589]
[1736535904944,3.08007338,3285.6,3285.1,0.61314589]
[1736535905561,3.07257338,3285.6,3285.1,3.65715589]
[1736535905765,3.07257338,3285.6,3285.2,3.82732]
[1736535905971,3.07257338,3285.6,3285.2,1.28298412]
[1736535906190,3.07257338,3285.6,3285.4,0.7834]
[1736535906684,3.07257338,3285.6,3285.4,3.82714]
[1736535907684,3.07257338,3285.6,3285.4,0.7834]
[1736535908322,3.07257338,3285.6,3285.1,1.41894589]
[1736535908801,3.80857,3285.4,3284.8,1.35094743]
[1736535909121,3.04415,3285.0,3284.8,1.35094743]
[1736535910068,3.87383,3284.9,3284.8,1.35094743]
[1736535910309,9.70121744,3284.9,3284.8,1.35094743]
[1736535910467,10.25121744,3284.9,3284.8,1.35094743]
[1736535910661,11.28383918,3284.9,3284.8,1.35094743]
[1736535910876,14.35641256,3284.9,3284.8,1.35094743]
[1736535911605,11.53652512,3284.9,3284.8,1.35094743]
[1736535913768,6.89467338,3284.9,3284.8,1.35094743]
[1736535914099,3.08007338,3284.9,3284.8,1.35094743]
[1736535914768,6.13180338,3284.9,3284.8,1.35094743]
[1736535914962,10.48090338,3284.9,3284.8,1.35094743]
[1736535915209,10.47340338,3284.9,3284.8,1.35094743]
[1736535915517,11.86298975,3284.9,3284.8,1.35094743]
[1736535915663,0.0075,3283.9,3283.3,1.0451]
[1736535915870,0.0075,3283.9,3282.4,35.0]
[1736535915871,0.015,3283.0,3282.0,2.44157763]
[1736535916078,0.015,3282.1,3280.9,0.7591]
[1736535916305,3.05404,3282.5,3281.6,0.62190411]
[1736535916605,3.06934,3282.1,3280.9,0.7591]
[1736535916812,0.0075,3282.1,3281.2,0.61611244]
[1736535917103,3.7609,3282.6,3281.2,0.61611244]
[1736535917104,0.7609,3282.6,3281.3,0.251]
[1736535917316,0.5725,3282.3,3281.3,0.251]
[1736535917468,3.04693,3282.0,3281.3,0.251]
[1736535917671,0.0075,3281.8,3280.9,0.7591]
[1736535918277,0.0225,3282.2,3281.0,0.61166463]
[1736535918513,0.0225,3282.2,3281.0,3.68997924]
[1736535918674,0.0225,3282.2,3281.1,3.04773]
[1736535918876,3.0,3282.5,3281.0,0.61166463]
[1736535919241,0.0075,3281.7,3281.0,0.61166463]
[1736535919520,0.0075,3281.7,3281.0,0.86266463]
[1736535919732,3.04674,3282.2,3281.0,0.86266463]
[1736535919874,0.7609,3282.6,3281.0,0.86266463]
[1736535920074,3.42265,3282.4,3281.2,3.04766]
[1736535920394,0.015,3282.3,3281.3,0.30781337]
[1736535920930,0.0075,3282.1,3281.0,3.91050463]
[1736535921248,0.0075,3281.7,3281.0,0.61166463]
[1736535921368,0.8206,3281.8,3280.9,0.7591]
[1736535921369,3.04748,3281.4,3280.9,0.7591]
[1736535921575,3.04769,3281.2,3280.5,1.009]
[1736535921795,0.0075,3281.3,3280.5,1.009]
[1736535922047,0.0075,3281.3,3280.5,0.758]
[1736535922048,0.015,3281.3,3280.5,0.758]
[1736535922360,0.0225,3280.8,3279.8,0.7965]
[1736535922645,3.0,3280.9,3279.8,4.45795883]
[1736535922849,3.0,3280.9,3280.0,3.04876]
[1736535923348,3.0,3280.9,3279.8,1.40901883]
[1736535923349,3.04724,3281.7,3279.8,1.40901883]
[1736535923560,3.430484,3281.6,3280.4,3.0484]
[1736535923847,0.7845,3281.8,3280.6,3.0482]
[1736535924063,0.7845,3281.8,3280.7,3.04806]
[1736535924256,0.7845,3281.8,3280.5,1.65117181]
[1736535924257,6.11958338,3281.9,3280.5,1.65117181]
[1736535924546,3.0075,3281.5,3280.5,1.40017181]
[1736535924745,0.0075,3281.5,3280.5,1.40017181]
[1736535924948,0.0075,3281.3,3280.5,0.7965]
[1736535925149,0.0075,3281.1,3280.4,0.251]
[1736535925352,0.0075,3280.9,3280.1,0.7607]
[1736535925862,3.7549,3281.1,3280.1,0.7607]
[1736535925996,3.07257338,3281.2,3280.4,3.0484]
[1736535926195,3.07257338,3281.2,3280.4,3.35628839]
[1736535926418,3.07257338,3281.2,3280.7,3.04808]
[1736535926760,0.0075,3281.4,3280.4,0.30788839]
[1736535926898,3.0075,3281.3,3280.1,0.7607]
[1736535927099,3.0225,3281.0,3280.1,0.7607]
[1736535927414,6.09507338,3281.0,3280.1,0.7607]
[1736535927616,9.14292338,3281.0,3280.1,0.7607]
[1736535927816,0.0075,3280.7,3279.7,0.7573]
[1736535928056,6.07257338,3281.0,3280.0,3.04876]
[1736535928230,6.07257338,3281.0,3279.7,0.7573]
[1736535928231,3.07052,3280.9,3279.9,0.61264351]
[1736535928635,0.0075,3280.7,3279.9,0.61264351]
[1736535928849,9.12043338,3281.0,3279.9,3.66142351]
[1736535929082,0.0075,3280.9,3280.0,3.04877]
[1736535929283,0.0075,3280.9,3279.9,0.61264351]
[1736535929591,0.60800734,3280.8,3279.8,3.29996]
[1736535929790,0.60800734,3280.8,3279.7,0.7573]
[1736535929791,0.5725,3280.7,3279.7,0.7573]
[1736535929998,3.07065,3280.7,3279.7,0.7573]
[1736535930336,0.0225,3280.5,3279.7,0.7573]
[1736535930572,0.0225,3280.5,3279.5,0.79559339]
[1736535930752,0.0225,3280.5,3279.5,4.33006573]
[1736535931157,3.04881,3280.0,3279.5,0.1993082]
[1736535931354,3.07257338,3280.1,3279.5,0.1993082]
[1736535931555,3.0,3280.0,3279.5,0.1993082]
[1736535931796,0.0225,3279.8,3279.5,0.1993082]
[1736535931940,0.0075,3279.8,3279.5,0.1993082]
[1736535932286,3.04967,3279.1,3277.9,3.80802]
[1736535932489,3.42246029,3278.6,3277.7,0.62382497]
[1736535932702,3.42246029,3278.6,3277.0,3.81401]
[1736535932703,3.0,3278.4,3277.0,3.81401]
[1736535932837,3.0,3278.4,3277.0,1.0135]
[1736535933073,0.7603,3278.8,3277.8,3.05082]
[1736535933467,0.8158,3279.2,3277.9,0.7734]
[1736535933669,0.8158,3280.3,3278.4,0.7734]
[1736535933975,3.04859,3280.2,3278.9,3.04971]
[1736535934198,3.04859,3280.2,3279.1,0.8041]
[1736535934402,4.54026772,3280.8,3279.1,0.8041]
[1736535934403,1.37870734,3280.8,3279.5,3.04921]
[1736535934571,3.81875,3280.8,3279.6,3.354051]
[1736535934771,0.7707,3280.8,3279.6,3.354051]
[1736535934993,0.015,3280.6,3279.6,3.354051]
[1736535935205,0.0075,3280.6,3279.6,3.354051]
[1736535935511,3.05572,3280.6,3279.6,0.304921]
[1736535935708,0.390142,3280.6,3279.6,0.304921]
[1736535935925,0.7707,3280.8,3279.4,0.61210536]
[1736535936134,0.0075,3280.5,3279.5,0.251]
[1736535936475,3.0,3280.4,3279.5,0.251]
[1736535936727,0.0075,3280.5,3279.5,0.251]
[1736535937091,0.7707,3280.8,3279.5,0.251]
[1736535937289,0.37707,3280.8,3279.8,3.04894]
[1736535937628,0.015,3281.2,3279.9,0.03048642]
[1736535937840,3.04768,3281.2,3280.1,3.04865]
[1736535937977,0.0225,3281.2,3280.2,3.04855]
[1736535938176,0.015,3281.2,3280.2,3.04855]
[1736535938412,0.0075,3281.2,3280.3,0.03048427]
[1736535938575,0.0075,3281.2,3280.5,3.04828]
[1736535938775,3.05471,3281.7,3280.6,3.04821]
[1736535938976,3.04738,3281.5,3280.5,0.257]
[1736535939270,0.0075,3281.2,3280.5,0.257]
[1736535939918,3.64771703,3281.6,3280.4,0.85968173]
[1736535939919,0.64771703,3281.6,3280.4,0.85968173]
[1736535940086,0.8104,3281.7,3280.6,0.257]
[1736535940283,3.04725,3281.7,3280.6,3.30519]
[1736535940590,3.0075,3281.6,3280.7,0.257]
[1736535940895,0.0075,3281.7,3280.7,0.257]
[1736535941098,0.0075,3281.7,3280.8,3.04802]
[1736535941335,0.306216,3281.6,3280.8,3.04802]
[1736535941629,0.785,3282.1,3280.8,0.03047845]
[1736535941630,0.7775,3282.1,3280.8,0.03047845]
[1736535941920,0.7775,3282.1,3281.1,3.04773]
[1736535942220,0.0075,3281.7,3280.7,0.257]
[1736535942379,0.0075,3281.4,3280.7,0.7528]
[1736535942579,0.0075,3281.5,3280.3,0.7528]
[1736535942782,0.30825,3281.5,3280.3,0.78328122]
[1736535943013,0.0075,3281.4,3280.3,4.43022763]
[1736535943228,0.30075,3281.5,3280.3,1.38180763]
[1736535943515,0.7775,3282.1,3281.1,0.7804]
[1736535944017,0.7775,3282.1,3281.1,3.82807]
[1736535944018,0.0075,3282.0,3281.1,3.82807]
[1736535944214,3.0075,3282.0,3281.2,0.257]
[1736535944418,0.0075,3282.0,3281.2,0.257]
[1736535944828,0.0075,3282.0,3281.1,0.7804]
[1736535945033,0.0075,3282.0,3281.1,1.0374]
[1736535945231,3.0075,3282.0,3281.1,1.0374]
[1736535945428,0.683183,3281.9,3281.1,1.0374]
[1736535945582,3.05466,3281.8,3281.1,1.0374]
[1736535945911,0.0075,3281.8,3281.1,1.0374]
[1736535946285,0.0075,3281.6,3280.9,0.61390924]
[1736535946616,0.683183,3281.9,3280.9,3.66182924]
[1736535946617,3.683183,3281.9,3280.9,3.66182924]
[1736535946823,0.6730133,3281.8,3280.9,0.64438763]
[1736535947284,3.015,3282.1,3281.1,3.04767]
[1736535947707,6.06183,3282.1,3281.1,3.04767]
[1736535948109,3.015,3282.1,3281.1,0.8329]
[1736535948299,3.04705,3281.9,3281.1,0.8329]
[1736535948707,3.015,3282.1,3281.1,0.8329]
[1736535948879,0.60875734,3282.0,3281.1,3.88065]
[1736535949082,0.60875734,3282.0,3281.1,0.8329]
[1736535949286,0.60875734,3282.0,3281.2,3.07812314]
[1736535949811,0.0075,3281.9,3281.1,0.8329]
[1736535950121,0.0075,3281.7,3280.9,0.61390924]
[1736535950309,0.0075,3281.2,3280.8,0.7535]
[1736535950693,3.05517,3281.2,3280.5,0.61865673]
[1736535951284,0.015,3281.4,3280.5,0.61865673]
[1736535951486,3.07257338,3281.2,3280.2,0.257]
[1736535951709,3.07257338,3281.2,3280.4,0.61029568]
[1736535951911,3.07257338,3281.2,3280.5,0.85778008]
[1736535952109,3.07257338,3281.2,3280.7,3.04811]
[1736535952710,3.07257338,3281.2,3280.5,0.8273]
[1736535953000,0.60875734,3282.0,3281.1,3.04773]
[1736535953205,3.04704,3281.9,3280.9,3.04793]
[1736535953631,0.7726,3282.1,3281.3,3.04749]
[1736535953833,3.0,3282.2,3281.3,3.04749]
[1736535954140,3.0,3282.0,3281.2,0.257]
[1736535954303,3.0075,3281.9,3281.2,0.257]
[1736535954672,0.605443,3281.8,3281.1,3.82913]
[1736535954847,3.0,3282.0,3281.2,3.07812455]
[1736535955138,3.0,3282.0,3281.2,0.03047455]
[1736535955326,0.0075,3282.1,3281.1,1.39222119]
[1736535955529,3.04712,3281.8,3281.1,1.39222119]
[1736535955730,3.0075,3281.9,3281.1,4.43997119]
[1736535955932,0.606195,3281.8,3281.1,4.69697119]
[1736535956442,3.653315,3281.8,3281.1,1.64922119]
[1736535956902,3.653315,3281.8,3281.1,1.39222119]
[1736535957106,3.653315,3281.8,3281.1,1.64922119]
[1736535957440,0.606195,3281.8,3281.2,0.03047585]
[1736535957637,3.04672,3282.3,3281.2,3.04763]
[1736535957949,3.0,3282.0,3281.2,3.04763]
[1736535958724,3.04656,3282.4,3281.4,3.04743]
[1736535959049,3.0,3282.2,3281.4,3.04743]
[1736535959218,3.04673,3282.2,3281.2,3.04762]
[1736535959418,0.7835,3282.5,3281.1,1.64922119]
[1736535959419,0.327173,3282.1,3281.1,1.64922119]
[1736535959615,0.0075,3281.8,3281.1,1.64922119]
[1736535959821,3.05461,3281.8,3281.1,1.64922119]
[1736535960033,3.05447,3282.0,3281.1,1.64922119]
[1736535960229,3.04677,3282.2,3281.1,1.64922119]
[1736535960431,3.0,3282.2,3281.1,1.64922119]
[1736535960659,0.604669,3282.1,3281.4,3.04746]
[1736535960854,0.0075,3282.4,3281.4,3.04746]
[1736535961046,3.05409,3282.4,3281.5,3.07785069]
[1736535961229,3.04659,3282.4,3281.6,0.786]
[1736535961428,3.0,3282.3,3281.6,0.786]
[1736535961858,0.0075,3282.4,3281.6,0.786]
[1736535962060,0.0075,3282.4,3281.2,0.7632]
[1736535962231,0.015,3282.2,3281.2,0.7632]
[1736535962645,3.04698,3282.0,3281.2,1.0202]
[1736535963185,3.06182,3282.2,3281.2,1.0202]
[1736535963359,0.015,3282.2,3281.2,1.0202]
[1736535963560,3.04739,3281.5,3280.9,0.8055]
[1736535963793,0.304739,3281.4,3280.9,1.4308814]
[1736535964096,0.304739,3281.4,3281.0,3.04782]
[1736535964245,3.0471,3281.9,3281.0,3.04782]
[1736535964850,3.0471,3281.9,3280.9,1.4308814]
[1736535965405,3.05444,3282.0,3280.9,1.4308814]
[1736535965688,3.05444,3282.0,3281.1,3.04767]
[1736535965990,3.05404,3282.5,3281.1,3.04767]
[1736535965991,3.0466,3282.4,3281.1,0.8055]
[1736535966165,0.38155,3282.3,3281.3,3.04757]
[1736535966367,0.38155,3282.3,3281.4,3.04741]
[1736535966819,3.04665,3282.3,3281.4,3.04741]
[1736535967003,0.7689,3282.5,3281.2,0.38359749]
[1736535967004,3.0,3282.4,3281.2,0.38359749]
[1736535967163,3.0,3282.4,3281.6,0.8055]
[1736535967502,0.7689,3282.8,3281.6,0.8055]
[1736535967704,0.7689,3282.8,3281.7,3.04713]
[1736535968002,0.8322,3282.2,3281.3,0.8176]
[1736535968205,3.04697,3282.0,3281.3,0.8176]
[1736535968349,3.0471,3281.9,3281.3,0.8176]
[1736535968693,3.04748,3281.4,3280.9,0.8176]
[1736535968866,3.04757,3281.3,3280.9,0.8176]
[1736535969193,3.85443,3281.5,3280.7,0.87241913]
[1736535969353,0.385443,3281.4,3280.7,0.87241913]
[1736535969554,3.04741,3281.5,3280.7,0.87241913]
[1736535969862,0.0075,3281.5,3280.7,0.87241913]